fUST/lending_fUST_20250804
["ID","MTS","AMOUNT","RATE_DAILY","PERIOD"]
[377288430,1754320259820,-584.82,0.00035616,2]
[377288431,1754320259830,-583.5,0.00035616,2]
[377288432,1754320259841,-647.3,0.00035616,2]
[377288433,1754320259851,-739.03,0.00035616,2]
[377288434,1754320259861,-619.22,0.00035616,2]
[377288435,1754320259870,-3267.42,0.00035616,2]
[377288436,1754320259880,-460.0,0.00035616,2]
[377288437,1754320259890,-537.06,0.00035616,2]
[377288438,1754320259900,-553.6,0.00035616,2]
[377288439,1754320259909,-460.0,0.00035616,2]
[377288440,1754320259919,-460.0,0.00035616,2]
[377288441,1754320259929,-977.49,0.00035616,2]
[377288442,1754320259939,-460.0,0.00035616,2]
[377288443,1754320259950,-2718.21,0.00035616,2]
[377288444,1754320259960,-460.0,0.00035616,2]
[377288445,1754320259970,-557.34,0.00035616,2]
[377288446,1754320259980,-460.0,0.00035616,2]
[377288447,1754320259990,-1268.05,0.00035616,2]
[377288448,1754320260000,-460.0,0.00035616,2]
[377288449,1754320260010,-816.99,0.00035616,2]
[377288450,1754320260020,-460.0,0.00035616,2]
[377288451,1754320260031,-460.0,0.00035616,2]
[377288452,1754320260041,-460.0,0.00035616,2]
[377288453,1754320260051,-644.51,0.00035616,2]
[377288454,1754320260060,-570.34442006,0.00035616,2]
[377288455,1754320260070,-621.34,0.00035616,2]
[377288456,1754320260080,-510.34,0.00035616,2]
[377288457,1754320260090,-2931.08,0.00035616,2]
[377288458,1754320260100,-480.57,0.00035616,2]
[377288459,1754320260110,-757.98,0.00035616,2]
[377288460,1754320260121,-2931.08,0.00035616,2]
[377288461,1754320260131,-4476.64,0.00035616,120]
[377288462,1754320260141,-460.0,0.00035616,2]
[377288463,1754320260152,-460.0,0.00035616,2]
[377288464,1754320260162,-460.0,0.00035616,2]
[377288465,1754320260173,-2661.3,0.00035616,2]
[377288466,1754320260183,-460.0,0.00035616,2]
[377288467,1754320260194,-858.24,0.00035616,2]
[377288468,1754320260205,-484.17,0.00035616,2]
[377288469,1754320260328,-460.0,0.00035616,2]
[377288470,1754320260338,-5634.25,0.00035616,2]
[377288471,1754320260348,-1218.26,0.00035616,2]
[377288472,1754320260358,-1569.94,0.00035616,2]
[377288473,1754320260368,-984.94,0.00035616,2]
[377288474,1754320260378,-6220.6,0.00035616,2]
[377288475,1754320260387,-1002.56,0.00035616,2]
[377288476,1754320260397,-9007.28,0.00035616,2]
[377288477,1754320260409,-442.25,0.00035697,60]
[377288478,1754320260418,-153.0,0.00035719,30]
[377288479,1754320260428,-153.0,0.00035719,30]
[377288480,1754320260437,-153.0,0.00035719,30]
[377288481,1754320260447,-153.0,0.00035719,30]
[377288482,1754320260456,-153.0,0.00035719,30]
[377288483,1754320260466,-442.25,0.00035797,60]
[377288484,1754320260475,-1300.0,0.00035801,7]
[377288485,1754320260485,-807.11999,0.0003589,14]
[377288486,1754320260495,-807.119997,0.0003589,14]
[377288487,1754320260505,-186.496639,0.0003589,14]
[377288488,1754320260515,-186.496639,0.0003589,14]
[377288489,1754320260525,-300.59389,0.0003589,14]
[377288490,1754320260534,-151.0,0.0003589,14]
[377288491,1754320260544,-151.0,0.0003589,14]
[377288492,1754320260553,-151.0,0.0003589,14]
[377288493,1754320260563,-460.0,0.0003589,2]
[377288494,1754320260573,-700.92,0.0003589,2]
[377288495,1754320260582,-460.0,0.0003589,2]
[377288496,1754320260592,-502.79665781,0.0003589,2]
[377288497,1754320260602,-2764.52,0.0003589,2]
[377288498,1754320260611,-460.0,0.0003589,2]
[377288499,1754320260621,-460.0,0.0003589,2]
[377288500,1754320260631,-686.95,0.0003589,2]
[377288501,1754320260641,-523.56,0.0003589,2]
[377288502,1754320260650,-460.0,0.0003589,2]
[377288503,1754320260662,-460.0,0.0003589,2]
[377288504,1754320260672,-460.0,0.0003589,2]
[377288505,1754320260682,-460.0,0.0003589,2]
[377288506,1754320260691,-460.0,0.0003589,2]
[377288507,1754320260701,-670.38,0.0003589,2]
[377288508,1754320260711,-586.38,0.0003589,2]
[377288509,1754320260720,-483.92,0.0003589,2]
[377288510,1754320260730,-460.0,0.0003589,2]
[377288511,1754320260739,-1441.46,0.0003589,2]
[377288512,1754320260749,-460.0,0.0003589,2]
[377288513,1754320260759,-556.6,0.0003589,2]
[377288514,1754320260768,-460.0,0.0003589,2]
[377288515,1754320260778,-460.0,0.0003589,2]
[377288516,1754320260788,-959.24,0.0003589,2]
[377288517,1754320260798,-839.25,0.0003589,2]
[377288518,1754320260809,-460.0,0.0003589,2]
[377288519,1754320260818,-2110.54,0.0003589,2]
[377288520,1754320260828,-866.47,0.0003589,2]
[377288521,1754320260839,-460.0,0.0003589,2]
[377288522,1754320260849,-460.0,0.0003589,2]
[377288523,1754320260859,-460.0,0.0003589,2]
[377288524,1754320260868,-219.532466,0.0003589,14]
[377288525,1754320260878,-219.532466,0.0003589,14]
[377288526,1754320260888,-460.0,0.0003589,2]
[377288527,1754320260898,-460.0,0.0003589,2]
[377288528,1754320260910,-460.0,0.0003589,2]
[377288529,1754320260920,-6299.05,0.0003589,2]
[377288530,1754320260929,-460.0,0.0003589,2]
[377288531,1754320260939,-460.0,0.0003589,2]
[377288532,1754320260949,-527.04,0.0003589,2]
[377288533,1754320260958,-460.0,0.0003589,2]
[377288534,1754320260967,-460.0,0.0003589,2]
[377288535,1754320260977,-1035.18,0.0003589,2]
[377288536,1754320260986,-767.32,0.0003589,2]
[377288537,1754320260996,-6855.53,0.0003589,2]
[377288538,1754320261006,-760.58,0.0003589,2]
[377288539,1754320261016,-1581.22,0.0003589,2]
[377288540,1754320261025,-494.35,0.0003589,2]
[377288541,1754320261035,-460.0,0.0003589,2]
[377288542,1754320261044,-460.0,0.0003589,2]
[377288543,1754320261054,-523.03,0.0003589,2]
[377288544,1754320261064,-460.0,0.0003589,2]
[377288545,1754320261073,-581.46,0.0003589,2]
[377288546,1754320261083,-617.49,0.0003589,2]
[377288547,1754320261092,-460.0,0.0003589,2]
[377288548,1754320261102,-948.56,0.0003589,2]
[377288549,1754320261112,-780.48,0.0003589,2]
[377288550,1754320261121,-496.13,0.0003589,2]
[377288551,1754320261130,-3804.14,0.0003589,2]
[377288552,1754320261140,-688.25,0.0003589,2]
[377288553,1754320261149,-460.0,0.0003589,2]
[377288554,1754320261163,-849.14,0.0003589,2]
[377288555,1754320261172,-584.82,0.0003589,2]
[377288556,1754320261181,-583.5,0.0003589,2]
[377288557,1754320261191,-647.3,0.0003589,2]
[377288558,1754320261201,-739.03,0.0003589,2]
[377288559,1754320261211,-619.22,0.0003589,2]
[377288560,1754320261224,-3267.42,0.0003589,2]
[377288561,1754320261234,-333.54568899,0.0003589,2]
[377288562,1754320261244,-537.06,0.0003589,2]
[377288563,1754320261254,-553.6,0.0003589,2]
[377288564,1754320261265,-460.0,0.0003589,2]
[377288565,1754320261275,-460.0,0.0003589,2]
[377288566,1754320261285,-977.49,0.0003589,2]
[377288567,1754320261296,-460.0,0.0003589,2]
[377288568,1754320261307,-2718.21,0.0003589,2]
[377288569,1754320261316,-460.0,0.0003589,2]
[377288570,1754320261326,-557.34,0.0003589,2]
[377288571,1754320261335,-460.0,0.0003589,2]
[377288572,1754320261345,-1268.05,0.0003589,2]
[377288573,1754320261355,-460.0,0.0003589,2]
[377288574,1754320261364,-816.99,0.0003589,2]
[377288575,1754320261374,-460.0,0.0003589,2]
[377288576,1754320261383,-460.0,0.0003589,2]
[377288577,1754320261393,-460.0,0.0003589,2]
[377288578,1754320261407,-644.51,0.0003589,2]
[377288579,1754320261417,-621.34,0.0003589,2]
[377288580,1754320261427,-510.34,0.0003589,2]
[377288581,1754320261436,-2931.08,0.0003589,2]
[377288582,1754320261446,-480.57,0.0003589,2]
[377288583,1754320261455,-2931.08,0.0003589,2]
[377288584,1754320261465,-757.98,0.0003589,2]
[377288585,1754320261474,-460.0,0.0003589,2]
[377288586,1754320261484,-460.0,0.0003589,2]
[377288587,1754320261494,-460.0,0.0003589,2]
[377288588,1754320261503,-2661.3,0.0003589,2]
[377288589,1754320261513,-460.0,0.0003589,2]
[377288590,1754320261523,-858.24,0.0003589,2]
[377288591,1754320261533,-484.17,0.0003589,2]
[377288592,1754320261543,-460.0,0.0003589,2]
[377288593,1754320261552,-5634.25,0.0003589,2]
[377288594,1754320261562,-1218.26,0.0003589,2]
[377288595,1754320261572,-1569.94,0.0003589,2]
[377288596,1754320261583,-984.94,0.0003589,2]
[377288597,1754320261592,-6220.6,0.0003589,2]
[377288598,1754320261602,-1002.56,0.0003589,2]
[377288599,1754320261612,-9007.28,0.0003589,2]
[377288600,1754320261621,-442.25,0.00035897,60]
[377288601,1754320261631,-3000.0,0.00035912,5]
[377288602,1754320261640,-173.17537399,0.0003598,2]
[377288603,1754320261650,-960.0,0.00035984,2]
[377288604,1754320261663,-442.25,0.00035997,60]
[377288605,1754320261673,-150.0,0.00036,2]
[377288606,1754320261682,-400.0,0.00036,120]
[377288607,1754320261691,-151.0,0.00036,14]
[377288608,1754320261700,-500.0,0.00036093,5]
[377288609,1754320261710,-442.25,0.00036097,60]
[377288610,1754320261720,-1400.0,0.0003616,5]
[377288611,1754320261729,-155.0,0.00036163,2]
[377288612,1754320261739,-151.0,0.00036164,14]
[377288613,1754320261748,-151.0,0.00036164,14]
[377288614,1754320261758,-151.0,0.00036164,14]
[377288615,1754320261767,-259.809258,0.00036164,14]
[377288616,1754320261777,-259.809258,0.00036164,14]
[377288617,1754320261786,-151.0,0.00036164,14]
[377288618,1754320261796,-184.190767,0.00036164,14]
[377288619,1754320261806,-184.190767,0.00036164,14]
[377288620,1754320261815,-460.0,0.00036164,2]
[377288621,1754320261825,-700.92,0.00036164,2]
[377288622,1754320261835,-607.61298484,0.00036164,2]
[377288623,1754320261844,-2764.52,0.00036164,2]
[377288624,1754320261854,-151.0,0.00036164,14]
[377288625,1754320261864,-460.0,0.00036164,2]
[377288626,1754320261873,-238.34570632,0.00036164,2]
[377288627,1754320261883,-686.95,0.00036164,2]
[377288628,1754320261892,-523.56,0.00036164,2]
[377288629,1754320261905,-460.0,0.00036164,2]
[377288630,1754320261914,-460.0,0.00036164,2]
[377288631,1754320261925,-460.0,0.00036164,2]
[377288632,1754320261934,-460.0,0.00036164,2]
[377288633,1754320261944,-460.0,0.00036164,2]
[377288634,1754320261954,-670.38,0.00036164,2]
[377288635,1754320261964,-586.38,0.00036164,2]
[377288636,1754320261974,-483.92,0.00036164,2]
[377288637,1754320261984,-460.0,0.00036164,2]
[377288638,1754320261994,-1441.46,0.00036164,2]
[377288639,1754320262004,-460.0,0.00036164,2]
[377288640,1754320262014,-151.0,0.00036164,14]
[377288641,1754320262024,-556.6,0.00036164,2]
[377288642,1754320262034,-460.0,0.00036164,2]
[377288643,1754320262044,-460.0,0.00036164,2]
[377288644,1754320262054,-959.24,0.00036164,2]
[377288645,1754320262063,-839.25,0.00036164,2]
[377288646,1754320262073,-460.0,0.00036164,2]
[377288647,1754320262083,-2110.54,0.00036164,2]
[377288648,1754320262093,-866.47,0.00036164,2]
[377288649,1754320262103,-460.0,0.00036164,2]
[377288650,1754320262112,-151.0,0.00036164,14]
[377288651,1754320262122,-151.0,0.00036164,14]
[377288652,1754320262132,-460.0,0.00036164,2]
[377288653,1754320262141,-460.0,0.00036164,2]
[377288654,1754320262150,-460.0,0.00036164,2]
[377288655,1754320262161,-460.0,0.00036164,2]
[377288656,1754320262171,-460.0,0.00036164,2]
[377288657,1754320262180,-6299.05,0.00036164,2]
[377288658,1754320262190,-460.0,0.00036164,2]
[377288659,1754320262199,-460.0,0.00036164,2]
[377288660,1754320262208,-527.04,0.00036164,2]
[377288661,1754320262220,-460.0,0.00036164,2]
[377288662,1754320262230,-460.0,0.00036164,2]
[377288663,1754320262239,-1035.18,0.00036164,2]
[377288664,1754320262248,-767.32,0.00036164,2]
[377288665,1754320262257,-6855.53,0.00036164,2]
[377288666,1754320262268,-760.58,0.00036164,2]
[377288667,1754320262278,-1581.22,0.00036164,2]
[377288668,1754320262287,-460.0,0.00036164,2]
[377288669,1754320262299,-460.0,0.00036164,2]
[377288670,1754320262309,-494.35,0.00036164,2]
[377288671,1754320262319,-523.03,0.00036164,2]
[377288672,1754320262328,-460.0,0.00036164,2]
[377288673,1754320262338,-581.46,0.00036164,2]
[377288674,1754320262347,-617.49,0.00036164,2]
[377288675,1754320262360,-948.56,0.00036164,2]
[377288676,1754320262370,-564.72515448,0.00036164,2]
[377288677,1754320262385,-780.48,0.00036164,2]
[377288678,1754320262395,-496.13,0.00036164,2]
[377288679,1754320262407,-3804.14,0.00036164,2]
[377288680,1754320262417,-688.25,0.00036164,2]
[377288681,1754320262426,-460.0,0.00036164,2]
[377288682,1754320262436,-849.14,0.00036164,2]
[377288683,1754320262445,-584.82,0.00036164,2]
[377288684,1754320262454,-583.5,0.00036164,2]
[377288685,1754320262464,-647.3,0.00036164,2]
[377288686,1754320262473,-739.03,0.00036164,2]
[377288687,1754320262482,-619.22,0.00036164,2]
[377288688,1754320262491,-3267.42,0.00036164,2]
[377288689,1754320262500,-537.06,0.00036164,2]
[377288690,1754320262510,-553.6,0.00036164,2]
[377288691,1754320262519,-460.0,0.00036164,2]
[377288692,1754320262528,-192.83494202,0.00036164,2]
[377288693,1754320262537,-977.49,0.00036164,2]
[377288694,1754320262547,-460.0,0.00036164,2]
[377288695,1754320262556,-2718.21,0.00036164,2]
[377288696,1754320262566,-460.0,0.00036164,2]
[377288697,1754320262575,-557.34,0.00036164,2]
[377288698,1754320262585,-460.0,0.00036164,2]
[377288699,1754320262594,-1268.05,0.00036164,2]
[377288700,1754320262604,-460.0,0.00036164,2]
[377288701,1754320262613,-816.99,0.00036164,2]
[377288702,1754320262622,-460.0,0.00036164,2]
[377288703,1754320262632,-460.0,0.00036164,2]
[377288704,1754320262641,-460.0,0.00036164,2]
[377288705,1754320262650,-644.51,0.00036164,2]
[377288706,1754320262662,-621.34,0.00036164,2]
[377288707,1754320262671,-510.34,0.00036164,2]
[377288708,1754320262680,-2931.08,0.00036164,2]
[377288709,1754320262689,-480.57,0.00036164,2]
[377288710,1754320262699,-757.98,0.00036164,2]
[377288711,1754320262708,-2931.08,0.00036164,2]
[377288712,1754320262717,-460.0,0.00036164,2]
[377288713,1754320262727,-460.0,0.00036164,2]
[377288714,1754320262737,-460.0,0.00036164,2]
[377288715,1754320262746,-2661.3,0.00036164,2]
[377288716,1754320262755,-460.0,0.00036164,2]
[377288717,1754320262764,-858.24,0.00036164,2]
[377288718,1754320262774,-484.17,0.00036164,2]
[377288719,1754320262783,-460.0,0.00036164,2]
[377288720,1754320262793,-5634.25,0.00036164,2]
[377288721,1754320262803,-1218.26,0.00036164,2]
[377288722,1754320262813,-984.94,0.00036164,2]
[377288723,1754320262823,-6220.6,0.00036164,2]
[377288724,1754320262833,-1569.94,0.00036164,2]
[377288725,1754320262843,-1002.56,0.00036164,2]
[377288726,1754320262852,-9007.28,0.00036164,2]
[377288727,1754320262862,-442.25,0.00036197,60]
[377288728,1754320262872,-153.0,0.00036267,30]
[377288729,1754320262882,-153.0,0.00036267,30]
[377288730,1754320262891,-153.0,0.00036267,30]
[377288731,1754320262903,-153.0,0.00036267,30]
[377288732,1754320262913,-157.7533288,0.00036267,30]
[377288733,1754320262922,-442.25,0.00036297,60]
[377288734,1754320262931,-206.0,0.0003634,30]
[377288735,1754320262942,-442.25,0.00036397,60]
[377288736,1754320262951,-650.74,0.000364,7]
[377288737,1754320262961,-210.0,0.0003642,43]
[377288738,1754320262970,-151.0,0.00036438,14]
[377288739,1754320262980,-151.0,0.00036438,14]
[377288740,1754320262989,-151.0,0.00036438,14]
[377288741,1754320262999,-151.0,0.00036438,14]
[377288742,1754320263012,-186.496639,0.00036438,14]
[377288743,1754320263029,-186.496639,0.00036438,14]
[377288744,1754320263039,-151.0,0.00036438,14]
[377288745,1754320263048,-151.0,0.00036438,14]
[377288746,1754320263058,-151.0,0.00036438,14]
[377288747,1754320263067,-460.0,0.00036438,2]
[377288748,1754320263077,-700.92,0.00036438,2]
[377288749,1754320263087,-2764.52,0.00036438,2]
[377288750,1754320263097,-293.92794808,0.00036438,2]
[377288751,1754320263107,-686.95,0.00036438,2]
[377288752,1754320263117,-523.56,0.00036438,2]
[377288753,1754320263127,-460.0,0.00036438,2]
[377288754,1754320263138,-460.0,0.00036438,2]
[377288755,1754320263148,-460.0,0.00036438,2]
[377288756,1754320263159,-460.0,0.00036438,2]
[377288757,1754320263169,-460.0,0.00036438,2]
[377288758,1754320263179,-670.38,0.00036438,2]
[377288759,1754320263189,-586.38,0.00036438,2]
[377288760,1754320263198,-483.92,0.00036438,2]
[377288761,1754320263208,-460.0,0.00036438,2]
[377288762,1754320263220,-1441.46,0.00036438,2]
[377288763,1754320263230,-460.0,0.00036438,2]
[377288764,1754320263240,-556.6,0.00036438,2]
[377288765,1754320263250,-460.0,0.00036438,2]
[377288766,1754320263259,-554.88314585,0.00036438,2]
[377288767,1754320263269,-959.24,0.00036438,2]
[377288768,1754320263278,-839.25,0.00036438,2]
[377288769,1754320263288,-460.0,0.00036438,2]
[377288770,1754320263298,-2110.54,0.00036438,2]
[377288771,1754320263308,-866.47,0.00036438,2]
[377288772,1754320263319,-460.0,0.00036438,2]
[377288773,1754320263328,-460.0,0.00036438,2]
[377288774,1754320263337,-460.0,0.00036438,2]
[377288775,1754320263346,-460.0,0.00036438,2]
[377288776,1754320263357,-460.0,0.00036438,2]
[377288777,1754320263366,-460.0,0.00036438,2]
[377288778,1754320263375,-6299.05,0.00036438,2]
[377288779,1754320263385,-460.0,0.00036438,2]
[377288780,1754320263395,-265.41135094,0.00036438,2]
[377288781,1754320263505,-527.04,0.00036438,2]
[377288782,1754320263529,-604.28558137,0.00036438,2]
[377288783,1754320263539,-460.0,0.00036438,2]
[377288784,1754320263549,-1035.18,0.00036438,2]
[377288785,1754320263559,-767.32,0.00036438,2]
[377288786,1754320263568,-6855.53,0.00036438,2]
[377288787,1754320263578,-760.58,0.00036438,2]
[377288788,1754320263588,-1581.22,0.00036438,2]
[377288789,1754320263597,-460.0,0.00036438,2]
[377288790,1754320263607,-228.1426393,0.00036438,2]
[377288791,1754320263616,-494.35,0.00036438,2]
[377288792,1754320263626,-523.03,0.00036438,2]
[377288793,1754320263635,-460.0,0.00036438,2]
[377288794,1754320263645,-617.49,0.00036438,2]
[377288795,1754320263656,-581.46,0.00036438,2]
[377288796,1754320263666,-948.56,0.00036438,2]
[377288797,1754320263676,-780.48,0.00036438,2]
[377288798,1754320263685,-496.13,0.00036438,2]
[377288799,1754320263695,-3804.14,0.00036438,2]
[377288800,1754320263706,-688.25,0.00036438,2]
[377288801,1754320263715,-460.0,0.00036438,2]
[377288802,1754320263725,-849.14,0.00036438,2]
[377288803,1754320263735,-584.82,0.00036438,2]
[377288804,1754320263745,-583.5,0.00036438,2]
[377288805,1754320263755,-647.3,0.00036438,2]
[377288806,1754320263764,-739.03,0.00036438,2]
[377288807,1754320263774,-619.22,0.00036438,2]
[377288808,1754320263784,-3267.42,0.00036438,2]
[377288809,1754320263793,-537.06,0.00036438,2]
[377288810,1754320263803,-553.6,0.00036438,2]
[377288811,1754320263813,-456.1434968,0.00036438,2]
[377288812,1754320263823,-977.49,0.00036438,2]
[377288813,1754320263833,-460.0,0.00036438,2]
[377288814,1754320263843,-2718.21,0.00036438,2]
[377288815,1754320263853,-460.0,0.00036438,2]
[377288816,1754320263863,-557.34,0.00036438,2]
[377288817,1754320263873,-460.0,0.00036438,2]
[377288818,1754320263883,-1268.05,0.00036438,2]
[377288819,1754320263892,-460.0,0.00036438,2]
[377288820,1754320263902,-816.99,0.00036438,2]
[377288821,1754320263914,-460.0,0.00036438,2]
[377288822,1754320263923,-460.0,0.00036438,2]
[377288823,1754320263933,-460.0,0.00036438,2]
[377288824,1754320263942,-644.51,0.00036438,2]
[377288825,1754320263952,-621.34,0.00036438,2]
[377288826,1754320263962,-510.34,0.00036438,2]
[377288827,1754320263972,-480.57,0.00036438,2]
[377288828,1754320263981,-2931.08,0.00036438,2]
[377288829,1754320263991,-757.98,0.00036438,2]
[377288830,1754320264000,-2931.08,0.00036438,2]
[377288831,1754320264010,-460.0,0.00036438,2]
[377288832,1754320264020,-460.0,0.00036438,2]
[377288833,1754320264030,-460.0,0.00036438,2]
[377288834,1754320264039,-460.0,0.00036438,2]
[377288835,1754320264049,-858.24,0.00036438,2]
[377288836,1754320264059,-2661.3,0.00036438,2]
[377288837,1754320264069,-484.17,0.00036438,2]
[377288838,1754320264078,-460.0,0.00036438,2]
[377288839,1754320264088,-5634.25,0.00036438,2]
[377288840,1754320264098,-1218.26,0.00036438,2]
[377288841,1754320264108,-984.94,0.00036438,2]
[377288842,1754320264128,-1569.94,0.00036438,2]
[377288843,1754320264140,-6220.6,0.00036438,2]
[377288844,1754320264151,-1002.56,0.00036438,2]
[377288845,1754320264162,-9007.28,0.00036438,2]
[377288846,1754320264173,-178.5956294,0.00036438,30]
[377288847,1754320264183,-200.0,0.00036456,120]
[377288848,1754320264194,-3500.0,0.0003646,5]
[377288849,1754320264204,-442.25,0.00036497,60]
[377288850,1754320264216,-188.69931726,0.000365,2]
[377288851,1754320264228,-287.31083565,0.00036508,16]
[377288852,1754320264238,-1060.0,0.00036532,2]
[377288853,1754320264249,-190.764427,0.0003655,2]
[377288854,1754320264259,-442.25,0.00036597,60]
[377288855,1754320264269,-37083.47,0.000366,14]
[377288856,1754320264280,-259.809258,0.000366,14]
[377288857,1754320264290,-259.809258,0.000366,14]
[377288858,1754320264301,-151.0,0.000366,14]
[377288859,1754320264312,-219.532466,0.000366,14]
[377288860,1754320264322,-219.532466,0.000366,14]
[377288861,1754320264332,-200.0,0.00036618,120]
[377288862,1754320264342,-200.0,0.0003669,120]
[377288863,1754320264354,-442.25,0.00036697,60]
[377288864,1754320264364,-229.40866862,0.00036708,5]
[377288865,1754320264374,-186.496639,0.00036712,14]
[377288866,1754320264384,-186.496639,0.00036712,14]
[377288867,1754320264394,-184.190767,0.00036712,14]
[377288868,1754320264405,-184.190767,0.00036712,14]
[377288869,1754320264415,-460.0,0.00036712,2]
[377288870,1754320264425,-700.92,0.00036712,2]
[377288871,1754320264435,-2764.52,0.00036712,2]
[377288872,1754320264444,-151.0,0.00036712,14]
[377288873,1754320264454,-686.95,0.00036712,2]
[377288874,1754320264464,-523.56,0.00036712,2]
[377288875,1754320264474,-460.0,0.00036712,2]
[377288876,1754320264484,-460.0,0.00036712,2]
[377288877,1754320264494,-460.0,0.00036712,2]
[377288878,1754320264504,-460.0,0.00036712,2]
[377288879,1754320264513,-438.49226046,0.00036712,2]
[377288880,1754320264523,-670.38,0.00036712,2]
[377288881,1754320264533,-586.38,0.00036712,2]
[377288882,1754320264543,-483.92,0.00036712,2]
[377288883,1754320264553,-460.0,0.00036712,2]
[377288884,1754320264563,-1441.46,0.00036712,2]
[377288885,1754320264574,-460.0,0.00036712,2]
[377288886,1754320264584,-151.0,0.00036712,14]
[377288887,1754320264595,-556.6,0.00036712,2]
[377288888,1754320264606,-191.41032888,0.00036712,2]
[377288889,1754320264616,-959.24,0.00036712,2]
[377288890,1754320264626,-839.25,0.00036712,2]
[377288891,1754320264637,-460.0,0.00036712,2]
[377288892,1754320264647,-2110.54,0.00036712,2]
[377288893,1754320264658,-866.47,0.00036712,2]
[377288894,1754320264668,-460.0,0.00036712,2]
[377288895,1754320264678,-151.0,0.00036712,14]
[377288896,1754320264688,-153.371416,0.00036712,14]
[377288897,1754320264698,-460.0,0.00036712,2]
[377288898,1754320264708,-460.0,0.00036712,2]
[377288899,1754320264718,-460.0,0.00036712,2]
[377288900,1754320264729,-460.0,0.00036712,2]
[377288901,1754320264738,-460.0,0.00036712,2]
[377288902,1754320264748,-6299.05,0.00036712,2]
[377288903,1754320264757,-460.0,0.00036712,2]
[377288904,1754320264771,-527.04,0.00036712,2]
[377288905,1754320264781,-460.0,0.00036712,2]
[377288906,1754320264791,-1035.18,0.00036712,2]
[377288907,1754320264801,-767.32,0.00036712,2]
[377288908,1754320264810,-6855.53,0.00036712,2]
[377288909,1754320264820,-760.58,0.00036712,2]
[377288910,1754320264831,-1581.22,0.00036712,2]
[377288911,1754320264841,-460.0,0.00036712,2]
[377288912,1754320264850,-494.35,0.00036712,2]
[377288913,1754320264860,-523.03,0.00036712,2]
[377288914,1754320264869,-460.0,0.00036712,2]
[377288915,1754320264879,-617.49,0.00036712,2]
[377288916,1754320264889,-581.46,0.00036712,2]
[377288917,1754320264898,-948.56,0.00036712,2]
[377288918,1754320264909,-780.48,0.00036712,2]
[377288919,1754320264919,-496.13,0.00036712,2]
[377288920,1754320264928,-3804.14,0.00036712,2]
[377288921,1754320264938,-688.25,0.00036712,2]
[377288922,1754320264948,-460.0,0.00036712,2]
[377288923,1754320264959,-849.14,0.00036712,2]
[377288924,1754320264968,-584.82,0.00036712,2]
[377288925,1754320264978,-647.3,0.00036712,2]
[377288926,1754320264988,-583.5,0.00036712,2]
[377288927,1754320264997,-739.03,0.00036712,2]
[377288928,1754320265007,-619.22,0.00036712,2]
[377288929,1754320265017,-3267.42,0.00036712,2]